bitfinex-derivatives/quotes_ETHF0:USTF0_20251126
["timestamp","ask_amount","ask_price","bid_price","bid_amount"]
[1764159045613,1.22586216,2896.4,2895.5,0.57508099]
[1764159046418,3.43141731,2896.5,2895.5,0.57508099]
[1764159046719,1.22586216,2896.6,2896.5,1.5491]
[1764159046926,1.22586216,2897.0,2896.5,1.5491]
[1764159049528,1.22586216,2897.0,2896.0,0.5711]
[1764159049529,0.9704,2896.6,2896.0,0.5711]
[1764159049736,2.20555515,2896.3,2896.0,0.5711]
[1764159050429,2.20555515,2896.3,2896.2,0.978]
[1764159050626,1.22586216,2896.9,2896.5,0.5711]
[1764159050928,1.22586216,2897.0,2896.8,0.978]
[1764159051233,2.19626216,2896.9,2896.5,0.5711]
[1764159051531,1.22586216,2897.0,2896.8,0.978]
[1764159051825,1.22586216,2897.0,2896.9,0.978]
[1764159052032,0.00905439,2897.1,2897.0,0.978]
[1764159052334,0.00905439,2897.1,2897.0,1.5491]
[1764159052530,0.00905439,2897.1,2897.0,0.978]
[1764159052730,0.00905439,2897.1,2896.5,0.5711]
[1764159053124,2.21460954,2897.1,2896.5,0.5711]
[1764159055431,0.83838831,2897.0,2896.5,0.5711]
[1764159055735,0.83838831,2896.9,2896.5,0.5711]
[1764159055931,2.21460954,2897.1,2896.0,0.5711]
[1764159055932,2.20555515,2896.7,2896.0,0.5711]
[1764159056135,0.83838831,2896.6,2896.5,1.5491]
[1764159056844,0.00905439,2897.1,2897.0,1.5491]
[1764159057331,0.84738689,2897.1,2897.0,1.5491]
[1764159057527,0.00905439,2897.1,2897.0,1.5491]
[1764159059426,0.97945439,2897.1,2896.5,0.5711]
[1764159059736,0.00905439,2897.1,2897.0,1.5491]
[1764159060238,2.41419324,2898.0,2897.0,1.5491]
[1764159060239,1.22586216,2898.0,2897.0,7.5491]
[1764159060529,1.22586216,2898.7,2898.4,0.978]
[1764159060733,1.22586216,2898.7,2898.0,0.5711]
[1764159060734,0.9704,2898.5,2898.0,0.5711]
[1764159060931,0.8381324,2898.4,2898.0,0.5711]
[1764159061130,0.84140604,2898.4,2898.0,0.57374081]
[1764159061332,0.00327364,2898.4,2898.0,0.57374081]
[1764159062131,0.97367364,2898.4,2898.0,0.57374081]
[1764159062938,0.00327364,2898.4,2898.3,0.978]
[1764159065429,0.89017364,2898.4,2898.0,0.57374081]
[1764159065738,0.8869,2898.1,2898.0,0.00264081]
[1764159067042,1.4359,2898.0,2895.7,4.67300424]
[1764159067336,2.20555515,2897.6,2896.1,0.35]
[1764159068042,2.20882879,2898.4,2898.0,0.5122]
[1764159068236,0.00327364,2898.4,2898.0,0.5122]
[1764159069335,0.00327364,2898.4,2898.3,0.9228]
[1764159070335,0.00327364,2898.4,2898.0,0.5122]
[1764159070525,2.20555515,2898.2,2898.1,0.9228]
[1764159072037,0.00327364,2898.4,2898.1,0.9228]
[1764159072234,0.00327364,2898.4,2898.3,0.9228]
[1764159072629,2.20555515,2899.1,2898.0,0.5122]
[1764159072630,1.22586216,2899.4,2898.5,0.5122]
[1764159072938,2.50915515,2899.5,2899.2,0.9228]
[1764159072939,0.83163938,2899.3,2899.2,0.9228]
[1764159073140,2.20555515,2899.5,2899.2,0.9228]
[1764159073336,0.83178645,2899.4,2899.2,0.9228]
[1764159073631,0.00384559,2899.4,2899.2,0.92559605]
[1764159074941,0.00384559,2899.4,2899.0,0.5122]
[1764159075131,0.00384559,2899.4,2899.3,0.9228]
[1764159075938,0.89074559,2899.4,2899.3,0.00427474]
[1764159077232,1.72250193,2899.4,2899.3,0.00427474]
[1764159077434,0.89074559,2899.4,2899.3,0.00427474]
[1764159079243,1.72243241,2899.4,2899.3,0.00427474]
[1764159084651,2.11660775,2899.4,2898.5,0.5122]
[1764159084853,0.8869,2898.6,2898.0,0.5122]
[1764159085152,2.98890053,2899.0,2898.5,1.435]
[1764159085351,0.83281978,2898.9,2898.5,1.435]
[1764159085554,0.83281978,2898.8,2898.5,1.43753126]
[1764159085849,0.83281978,2898.7,2898.5,1.43753126]
[1764159086147,2.98890053,2899.0,2898.5,1.43753126]
[1764159086148,0.83357553,2898.6,2898.5,1.43753126]
[1764159086861,2.54500053,2899.0,2898.5,1.43753126]
[1764159087147,0.83366876,2898.9,2898.5,1.43753126]
[1764159087352,0.83366876,2898.8,2898.7,0.9228]
[1764159087648,0.83366876,2898.9,2898.7,0.9228]
[1764159087853,0.83366876,2898.8,2898.7,0.9228]
[1764159088549,3.77086269,2899.0,2898.5,0.51473126]
[1764159088550,0.8869,2898.6,2898.5,0.00253126]
[1764159088749,1.72056876,2898.6,2898.5,0.00253126]
[1764159089752,0.549,2898.5,2897.5,0.5122]
[1764159089950,1.22365322,2898.3,2898.0,0.5122]
[1764159090151,5.95457797,2899.0,2898.0,0.5122]
[1764159090152,1.22365322,2898.5,2898.4,0.9228]
[1764159090343,1.22365322,2898.9,2898.8,0.9228]
[1764159090543,1.22365322,2898.9,2898.8,0.92521858]
[1764159090753,1.22365322,2899.0,2898.8,0.92521858]
[1764159091354,2.05880848,2898.9,2898.8,0.92521858]
[1764159091556,1.22365322,2898.9,2898.8,0.92521858]
[1764159091750,1.22365322,2898.9,2898.8,0.00241858]
[1764159092255,0.83515526,2898.9,2898.8,0.92521858]
[1764159100755,1.83932542,2899.4,2898.8,0.92521858]
[1764159100756,0.00384559,2899.4,2899.3,0.8275]
[1764159100957,0.81674559,2899.4,2899.0,0.4679]
[1764159101958,0.00384559,2899.4,2899.3,0.8275]
[1764159102560,0.81674559,2899.4,2899.0,0.4679]
[1764159103358,0.81674559,2899.4,2899.3,0.8275]
[1764159103559,0.00384559,2899.4,2899.3,0.8275]
[1764159103764,0.92343648,2899.4,2899.3,0.8275]
[1764159103961,0.00384559,2899.4,2899.3,0.8275]
[1764159107666,2.37552301,2900.3,2899.0,0.4679]
[1764159107667,0.91959089,2899.9,2899.8,0.8275]
[1764159107963,1.83547983,2900.2,2899.5,0.4679]
[1764159107964,0.91959089,2900.0,2899.9,0.8275]
[1764159108162,0.91959089,2900.1,2900.0,0.8275]
[1764159108364,0.91959089,2900.2,2900.1,0.8275]
[1764159108664,0.91959089,2900.2,2900.0,0.4679]
[1764159108665,0.91959089,2900.3,2900.2,0.8275]
[1764159108862,0.00517616,2900.4,2900.3,0.8275]
[1764159109055,0.00878126,2900.4,2900.3,0.8275]
[1764159110965,0.91835636,2901.1,2900.8,0.8275]
[1764159111470,0.91835636,2901.2,2900.8,0.8275]
[1764159111768,0.8129,2900.9,2900.8,0.8275]
[1764159111963,0.81626278,2900.9,2900.8,0.8275]
[1764159112471,2.31477983,2902.0,2900.5,0.4679]
[1764159112668,0.83010872,2901.9,2900.7,0.515]
[1764159112871,0.83010872,2901.8,2900.7,0.515]
[1764159113166,0.4793,2902.0,2900.7,0.515]
[1764159113363,0.4793,2901.5,2900.7,0.515]
[1764159113568,0.4793,2901.5,2900.4,3.345]
[1764159113776,2.54500053,2901.2,2899.9,0.00517616]
[1764159113960,0.82481519,2901.1,2899.9,1.62117616]
[1764159114162,0.4793,2901.0,2899.9,1.62117616]
[1764159114964,0.4793,2901.0,2899.9,0.00517616]
[1764159115770,0.00517616,2901.6,2900.4,2.54500053]
[1764159116071,0.00517616,2901.6,2900.3,3.243]
[1764159116072,0.4793,2901.5,2900.3,3.243]
[1764159116670,0.00517616,2901.6,2900.5,2.54500053]
[1764159117072,0.00304384,2902.0,2900.5,2.54500053]
[1764159117271,0.00304384,2902.0,2900.6,4.43465238]
[1764159118861,0.00304384,2902.0,2901.0,2.54500053]
[1764159119066,0.00304384,2902.0,2901.0,2.54824958]
[1764159119267,0.4793,2902.5,2901.1,6.93898572]
[1764159119570,0.4793,2902.5,2901.2,1.545]
[1764159120374,0.00345077,2902.1,2901.6,0.00517616]
[1764159120575,0.4793,2902.0,2901.6,0.00517616]
[1764159121268,0.8129,2901.7,2901.0,0.00324905]
[1764159121470,0.4793,2901.5,2901.0,0.00324905]
[1764159122476,0.8129,2901.1,2901.0,0.00842521]
[1764159123268,0.4793,2901.5,2901.0,0.00842521]
[1764159125270,0.4674,2901.0,2899.1,14.96100053]
[1764159125475,0.4674,2901.0,2899.2,4.223]
[1764159125678,0.4674,2901.0,2899.2,8.70431637]
[1764159126073,0.4674,2901.0,2899.3,5.384]
[1764159126278,0.00517616,2900.4,2899.9,0.00517616]
[1764159126478,0.00893475,2900.4,2899.9,0.00517616]
[1764159129875,0.4674,2900.0,2899.9,0.00517616]
[1764159132182,0.00893475,2900.4,2899.9,0.00517616]
[1764159133382,0.4674,2900.0,2899.9,0.00517616]
[1764159136481,1.2872,2900.0,2899.9,0.00517616]
[1764159136681,0.4674,2899.5,2899.3,0.00352618]
[1764159137378,0.4674,2900.0,2899.3,0.00352618]
[1764159137576,0.4674,2900.0,2899.4,0.00517616]
[1764159137883,1.2872,2899.5,2899.4,0.00517616]
[1764159139682,0.8198,2899.4,2898.4,0.857]
[1764159140683,0.8198,2899.4,2898.6,0.00517616]
[1764159144582,1.2872,2898.5,2898.4,0.00258748]
[1764159146893,1.2872,2898.5,2897.0,2.46744909]
[1764159146894,0.4674,2897.0,2896.6,2.46744909]
[1764159147183,0.4674,2897.0,2896.1,2.19983822]
[1764159147888,0.00517616,2896.8,2896.1,2.20243573]
[1764159154297,0.4674,2896.5,2896.1,0.00259751]
[1764159156090,0.8198,2896.2,2896.1,0.00259751]
[1764159156295,0.4674,2896.5,2896.1,0.00259751]
[1764159159894,0.6787,2896.2,2896.1,0.00259751]
[1764159160990,0.4674,2896.5,2896.1,0.00259751]
[1764159163599,0.6787,2896.2,2896.1,0.00259751]
[1764159163806,0.4188,2896.0,2895.5,4.185]
[1764159164708,0.6787,2895.6,2895.5,0.00448502]
[1764159164911,0.4188,2896.0,2895.5,0.00448502]
[1764159166316,0.6787,2895.6,2895.5,0.00448502]
[1764159168112,0.4188,2896.0,2895.5,0.00448502]
[1764159169019,0.6787,2895.6,2895.5,0.00448502]
[1764159169516,0.4188,2896.0,2895.5,0.00448502]
[1764159173819,0.6787,2895.6,2895.5,0.00448502]
[1764159174719,0.4674,2896.5,2895.5,13.98075494]
[1764159174910,0.00517616,2896.8,2896.4,2.19983822]
[1764159175222,0.00517616,2896.8,2896.5,4.81]
[1764159176121,0.00517616,2896.8,2896.0,2.19983822]
[1764159176423,0.00517616,2896.8,2896.6,5.587]
[1764159179126,0.6787,2896.7,2896.6,5.587]
[1764159179526,0.00517616,2896.8,2896.6,5.587]
[1764159180225,0.00517616,2896.8,2896.7,2.19983822]
[1764159180528,0.4674,2897.5,2896.7,2.19983822]
[1764159180822,0.4188,2897.0,2896.8,4.883]
[1764159181528,0.42265387,2897.0,2896.8,4.883]
[1764159182020,0.6787,2896.9,2896.8,4.883]
[1764159183318,0.42265387,2897.0,2896.8,4.883]
[1764159184427,0.6787,2896.9,2896.8,4.883]
[1764159184629,0.6787,2896.9,2896.7,5.585]
[1764159185525,0.6539,2896.8,2896.7,5.585]
[1764159185728,0.6825,2896.8,2896.7,5.585]
[1764159186226,0.6825,2895.8,2895.5,0.00448502]
[1764159186730,0.6825,2895.6,2895.5,0.00448502]
[1764159186928,0.403,2896.0,2895.5,0.00448502]
[1764159187325,0.403,2896.5,2895.5,0.00448502]
[1764159187531,0.403,2896.5,2896.0,2.19983822]
[1764159187733,0.403,2896.5,2895.6,2.19983822]
[1764159189125,0.403,2896.5,2896.0,2.19983822]
[1764159189331,0.403,2896.5,2895.9,2.19983822]
[1764159190526,0.403,2896.5,2896.4,2.19983822]
[1764159190834,0.403,2896.5,2896.4,7.78483822]
[1764159191136,0.403,2896.5,2896.4,5.585]
[1764159194338,0.42265387,2897.0,2896.4,7.78483822]
[1764159194531,0.403,2896.5,2896.4,7.78483822]
[1764159195139,0.42265387,2897.0,2896.4,7.78483822]
[1764159196035,0.403,2896.5,2896.4,7.78483822]
[1764159196537,0.403,2896.5,2896.4,5.584]
[1764159198235,0.42265387,2897.0,2896.4,7.78383822]
[1764159198438,0.42265387,2897.0,2896.4,10.25128731]
[1764159198638,0.42265387,2897.0,2896.4,8.05144909]
[1764159199337,0.403,2896.5,2896.4,8.05144909]
[1764159200340,1.0855,2896.5,2896.4,8.05144909]
[1764159200532,1.0855,2896.5,2896.3,2.46744909]
[1764159200837,0.42265387,2897.0,2896.4,5.583]
[1764159201029,0.42265387,2897.0,2896.8,2.47444962]
[1764159201640,0.42265387,2897.0,2896.9,5.583]
[1764159202535,0.42265387,2897.0,2896.8,2.47444962]
[1764159202741,0.42265387,2897.0,2896.9,5.583]
[1764159203336,0.42265387,2897.0,2896.9,8.05744962]
[1764159203532,0.42265387,2897.0,2896.9,5.583]
[1764159204342,1.10515387,2897.0,2896.9,8.05744962]
[1764159205346,1.10515387,2897.0,2896.9,5.583]
[1764159205536,0.6825,2896.9,2896.8,2.47444962]
[1764159205736,0.6825,2896.8,2896.7,2.47444962]
[1764159205935,0.6825,2896.8,2896.7,5.582]
[1764159206444,1.0855,2896.5,2896.4,2.47444962]
[1764159206746,1.0855,2896.5,2896.4,8.05644962]
[1764159207735,0.403,2896.5,2896.4,8.05644962]
[1764159208937,0.403,2896.5,2896.4,5.582]
[1764159209140,0.42265387,2897.0,2896.4,5.582]
[1764159209342,0.42265387,2897.0,2896.8,2.47762227]
[1764159210436,0.6825,2896.8,2896.7,2.47762227]
[1764159210658,0.6825,2896.8,2896.4,5.582]
[1764159210659,0.42265387,2897.0,2896.4,8.66540532]
[1764159210952,0.42265387,2897.0,2896.8,2.47739818]
[1764159211641,0.6825,2896.8,2896.7,2.47739818]
[1764159212439,0.6825,2896.7,2896.6,5.581]
[1764159213047,0.42265387,2897.0,2896.6,5.581]
[1764159213346,0.6825,2896.8,2896.7,2.47750238]
[1764159214049,0.42265387,2897.0,2896.7,2.47750238]
[1764159214347,0.42265387,2897.0,2896.8,2.47750238]
[1764159215444,0.6825,2896.9,2896.8,2.47750238]
[1764159216153,0.42265387,2897.0,2896.6,5.581]
[1764159216154,0.6139,2896.8,2896.7,2.47750238]
[1764159216848,0.6139,2896.8,2896.6,5.581]
[1764159217852,0.42265387,2897.0,2896.6,5.581]
[1764159218052,0.42265387,2897.0,2896.9,2.47986641]
[1764159218940,1.03655387,2897.0,2896.9,2.47986641]
[1764159220546,0.6139,2896.9,2896.8,2.47986641]
[1764159222352,0.6139,2896.8,2896.7,2.48243413]
[1764159222549,0.6139,2896.8,2896.3,3.08340532]
[1764159222745,0.6139,2896.8,2896.2,5.579]
[1764159222746,0.6139,2896.4,2896.2,8.66240532]
[1764159222945,0.6139,2896.3,2896.2,5.579]
[1764159225255,0.6139,2896.3,2896.2,3.7231]
[1764159225450,0.6139,2896.3,2895.5,0.35058502]
[1764159226251,1.33565413,2897.0,2895.5,0.35058502]
[1764159226252,0.42265387,2897.0,2895.5,0.35058502]
[1764159226455,0.84189986,2896.9,2895.5,0.35058502]
[1764159226646,0.42265387,2897.0,2895.5,0.35058502]
[1764159226843,0.84189021,2896.9,2895.5,0.35058502]
[1764159227047,0.42265387,2897.0,2895.5,0.35058502]
[1764159227249,0.84189021,2896.9,2895.5,0.35058502]
[1764159227448,0.42265387,2897.0,2895.5,0.35058502]
[1764159227656,0.84153049,2896.9,2895.5,0.35058502]
[1764159227850,0.42265387,2897.0,2895.5,0.35058502]
[1764159228051,0.84152929,2896.9,2895.5,0.35058502]
[1764159228244,0.42265387,2897.0,2895.5,0.35058502]
[1764159229759,0.42265387,2897.0,2895.5,2.89760185]
[1764159230661,0.42265387,2897.0,2895.5,5.98100717]
[1764159232257,0.00385387,2897.0,2895.5,5.98100717]
[1764159232457,0.00385387,2897.0,2895.8,2.47524205]
[1764159232856,0.00385387,2897.0,2895.9,2.47524205]
[1764159233059,0.00385387,2897.0,2896.0,0.3461]
[1764159233359,0.00385387,2897.0,2896.0,2.82134205]
[1764159234361,0.00385387,2897.0,2896.5,0.3461]
[1764159235161,0.6139,2896.6,2896.0,2.82134205]
[1764159235861,0.6139,2896.6,2896.5,0.9423]
[1764159236662,0.6139,2896.6,2896.0,2.82134205]
[1764159237053,0.00385387,2897.0,2896.5,0.9423]
[1764159237852,0.13805387,2897.0,2896.5,0.9423]
[1764159238160,0.6139,2896.6,2896.0,2.82134205]
[1764159238754,0.13805387,2897.0,2896.5,0.9423]
[1764159238968,0.6139,2896.6,2896.0,2.82134205]
[1764159239858,0.6139,2896.6,2896.5,0.3461]
[1764159240762,0.6139,2896.6,2896.5,0.9423]
[1764159240972,0.00385387,2897.0,2896.5,0.9423]
[1764159241164,0.00385387,2897.0,2896.9,0.5962]
[1764159241465,0.61775387,2897.0,2896.5,1.92008715]
[1764159241667,0.61775387,2897.0,2896.9,0.5962]
[1764159242367,0.403,2898.0,2897.1,0.5962]
[1764159242564,0.84224629,2897.9,2897.1,0.5962]
[1764159242860,0.403,2898.0,2897.1,2.17018715]
[1764159243064,0.403,2898.0,2897.1,0.5962]
[1764159243366,0.403,2898.0,2897.0,0.3461]
[1764159243367,0.00517616,2897.8,2897.3,0.00517616]
[1764159243667,0.6139,2897.4,2897.3,0.60137616]
[1764159243860,0.00517616,2897.8,2897.3,0.60137616]
[1764159244454,0.6139,2897.4,2897.3,0.00517616]
[1764159245064,0.00517616,2897.8,2897.3,0.60137616]
[1764159245265,0.6362,2897.4,2897.3,0.60137616]
[1764159245968,0.6362,2897.4,2897.3,0.00517616]
[1764159247662,1.74268715,2897.5,2896.6,0.6369]
[1764159248066,0.1687,2897.5,2896.6,0.6369]
[1764159248570,1.74268715,2897.5,2896.6,0.6369]
[1764159249567,0.6362,2896.6,2896.2,2.47524205]
[1764159249768,0.6362,2896.3,2896.1,2.185]
[1764159249965,0.6362,2896.2,2896.1,2.185]
[1764159252166,0.6362,2896.1,2895.5,2.82582707]
[1764159252366,0.64137616,2896.1,2895.5,2.82582707]
[1764159252567,0.64137616,2896.1,2895.5,0.35058502]
[1764159255071,0.6362,2895.6,2895.5,0.98748502]
[1764159255270,0.6392596,2895.6,2895.5,0.98748502]
[1764159256469,0.0030596,2895.6,2895.5,0.98748502]
[1764159258976,0.0030596,2895.6,2895.5,0.00448502]
[1764159258977,0.6392596,2895.6,2895.5,0.00448502]
[1764159259163,0.6392596,2895.6,2895.5,1.02668502]
[1764159259667,0.0030596,2895.6,2895.5,1.02668502]
[1764159261368,0.00517616,2896.1,2896.0,1.0222]
[1764159262365,0.00517616,2896.1,2895.5,0.38978502]
[1764159262366,0.64549473,2896.1,2895.5,0.38978502]
[1764159263669,0.00929473,2896.1,2896.0,1.0222]
[1764159267377,1.08170026,2897.5,2896.0,1.0222]
[1764159267580,0.84125028,2897.4,2896.0,1.0222]
[1764159267779,0.84125028,2897.3,2896.0,1.0222]
[1764159267981,0.84125028,2897.2,2896.0,1.0222]
[1764159268177,1.08170026,2897.5,2896.0,1.0222]
[1764159268479,0.00517616,2897.0,2896.5,0.39047616]
[1764159268778,0.24637616,2897.0,2896.5,0.39047616]
[1764159268977,0.6362,2896.6,2896.5,1.02737616]
[1764159269173,0.6362,2896.6,2896.5,0.00517616]
[1764159269376,0.00517616,2897.0,2896.5,1.02737616]
[1764159269781,0.6362,2896.6,2896.5,1.02737616]
[1764159271184,2.21006404,2896.6,2896.5,0.00517616]
[1764159272679,0.6362,2896.6,2896.5,0.00517616]
[1764159273475,2.21006404,2896.6,2896.5,0.00517616]
[1764159275278,0.1875,2896.5,2895.5,0.38978502]
[1764159275482,1.57386404,2896.3,2895.5,0.38978502]
[1764159275681,1.57386404,2896.0,2895.5,0.38978502]
[1764159275886,1.57386404,2896.3,2895.5,0.38978502]
[1764159276485,0.5966,2895.6,2895.5,0.00448502]
[1764159278074,3.64582393,2895.6,2894.5,0.3853]
[1764159278279,2.20608343,2894.8,2894.3,0.5809]
[1764159278479,0.5966,2894.4,2894.0,0.3853]
[1764159278885,0.00517616,2895.3,2894.3,0.5809]
[1764159279078,0.8425903,2895.2,2894.3,0.58365348]
[1764159279385,0.2412,2895.0,2894.3,0.58365348]
[1764159279678,0.5966,2894.4,2894.3,0.00275348]
[1764159280180,0.2412,2895.0,2894.3,0.58365348]
[1764159281082,0.5966,2894.4,2894.3,0.00275348]
[1764159281986,0.5966,2893.6,2893.5,0.3646]
[1764159282183,0.5966,2893.6,2893.5,0.9455]
[1764159282978,0.5966,2893.6,2893.5,0.94894661]
[1764159283284,0.00517616,2893.8,2893.5,0.94894661]
[1764159283489,0.00517616,2893.8,2893.7,0.5809]
[1764159283688,0.91300026,2895.2,2893.7,0.5809]
[1764159283984,2.20608343,2895.2,2894.0,0.3646]
[1764159284179,0.5966,2894.1,2894.0,0.3646]
[1764159284375,0.5966,2894.1,2893.7,2.232]
[1764159284691,0.1926,2895.0,2894.1,0.5809]
[1764159284692,0.00517616,2894.2,2894.1,0.5809]
[1764159284879,0.60177616,2894.2,2894.0,0.3646]
[1764159285075,0.5966,2894.1,2894.0,0.9455]
[1764159285278,0.00517616,2894.2,2894.1,0.5809]
[1764159285879,0.60177616,2894.2,2894.1,0.5809]
[1764159286184,0.60177616,2894.2,2893.7,2.232]
[1764159286185,0.5966,2894.1,2893.7,2.232]
[1764159287482,0.5966,2893.8,2893.6,0.00517616]
[1764159288090,0.5966,2893.8,2893.7,0.5809]
[1764159288291,0.00517616,2894.2,2893.7,0.5809]
[1764159290479,0.00517616,2894.2,2893.6,0.00517616]
[1764159290480,0.00517616,2894.2,2893.6,0.58607616]
[1764159290790,0.5966,2893.7,2893.6,0.58607616]
[1764159291885,0.00517616,2894.2,2893.6,0.58607616]
[1764159292485,0.5966,2893.7,2893.6,0.58607616]
[1764159292997,0.00517616,2894.2,2893.6,0.58607616]
[1764159293292,0.5966,2893.7,2893.6,0.00517616]
[1764159297695,0.5966,2893.7,2893.6,0.58607616]
[1764159298198,0.00517616,2894.2,2893.6,0.58607616]
[1764159298589,0.5966,2893.7,2893.6,0.58607616]
[1764159298997,0.5966,2893.7,2893.6,0.00517616]
[1764159300099,0.5966,2893.7,2893.6,0.58607616]
[1764159300398,0.00517616,2894.2,2893.6,0.58607616]
[1764159300597,0.60177616,2894.2,2894.1,0.5809]
[1764159300800,0.60177616,2894.2,2893.6,0.00517616]
[1764159300801,0.5966,2894.1,2893.6,0.00517616]
[1764159301004,0.5966,2893.7,2893.6,0.00517616]
[1764159301302,0.00517616,2894.2,2893.6,0.58607616]
[1764159301606,0.5966,2893.7,2893.6,0.00517616]
[1764159301803,0.5966,2893.7,2893.6,0.58607616]
[1764159301998,0.5966,2893.7,2893.6,0.00517616]
[1764159302408,0.5966,2893.1,2892.5,0.3646]
[1764159302907,2.20608343,2893.9,2893.0,0.9455]
[1764159303404,0.5966,2893.1,2893.0,0.94811614]
[1764159303613,0.5966,2893.1,2893.0,0.00261614]
[1764159304299,2.80268343,2893.1,2893.0,0.00261614]
[1764159304609,0.2412,2892.5,2891.6,0.5809]
[1764159304799,0.91378106,2893.1,2891.6,0.5809]
[1764159305004,0.00518529,2892.6,2891.6,0.5809]
[1764159305207,2.20608343,2893.8,2892.5,0.9089]
[1764159305407,0.8518677,2893.7,2892.5,0.91257236]
[1764159305704,1.76564876,2893.7,2892.5,0.91257236]
[1764159305899,2.20608343,2893.8,2892.5,0.91257236]
[1764159305900,0.8518677,2893.6,2892.5,0.91257236]
[1764159306099,0.00518529,2893.3,2892.8,0.00518529]
[1764159306300,0.00518529,2893.3,2893.2,0.5052]
[1764159309514,0.53478529,2893.3,2893.0,0.324]
[1764159309820,0.00518529,2893.3,2893.2,0.5052]
[1764159312716,0.00518529,2893.3,2893.0,0.324]
[1764159312717,0.5296,2893.1,2893.0,0.324]
[1764159312916,0.00518529,2893.3,2893.0,0.8292]
[1764159313111,0.00518529,2893.3,2893.2,0.5052]
[1764159313514,0.85967299,2893.3,2893.2,0.5052]
[1764159314111,0.85959583,2893.3,2893.2,0.5052]
[1764159314312,0.85975055,2893.3,2893.2,0.5052]
[1764159315110,0.00518529,2893.3,2893.2,0.5052]
[1764159317516,0.00336651,2893.9,2893.8,0.5052]
[1764159318212,0.91378106,2894.6,2894.4,0.5052]
[1764159318418,1.76610107,2894.6,2894.5,0.324]
[1764159318724,0.91896635,2894.8,2894.7,0.5052]
[1764159318923,0.00518529,2894.8,2894.7,0.5052]
[1764159319223,0.91378106,2895.7,2895.4,0.5052]
[1764159319421,0.91378106,2895.9,2895.8,0.5052]
[1764159319620,0.85150366,2895.9,2895.8,0.5052]
[1764159319814,0.91378106,2896.3,2895.8,0.5052]
[1764159320221,0.92326449,2896.3,2895.8,0.51038529]
[1764159320420,0.92326449,2896.3,2896.1,0.5052]
[1764159320421,0.85162616,2896.2,2896.1,0.5052]
[1764159320622,0.00948343,2896.3,2896.1,0.5052]
[1764159320818,0.00948343,2896.3,2896.2,0.5052]
[1764159321816,0.53908343,2896.3,2896.0,0.324]
[1764159322017,0.5296,2895.9,2895.8,0.00518529]
[1764159322521,0.00948343,2896.3,2896.2,0.5052]
[1764159322722,0.53908343,2896.3,2896.0,0.324]
[1764159323319,0.00948343,2896.3,2896.2,0.5052]
[1764159323524,0.1871,2897.5,2896.2,0.5052]
[1764159323825,0.84718049,2897.4,2896.2,0.5052]
[1764159324126,0.1964,2898.0,2896.2,0.5052]
[1764159324625,0.00518529,2897.4,2896.2,0.5052]
[1764159328425,0.00518529,2897.4,2897.3,0.5052]
[1764159328627,0.00518529,2897.4,2897.3,0.50786954]
[1764159329020,0.53478529,2897.4,2897.3,0.00266954]
[1764159329727,9.08387291,2897.4,2896.5,0.324]
[1764159329931,0.5296,2896.6,2896.0,0.324]
[1764159330327,0.5296,2896.1,2895.0,0.324]
[1764159330722,0.5296,2896.1,2895.8,0.00785847]
[1764159332030,0.196,2897.0,2896.0,0.324]
[1764159332231,0.5296,2896.1,2895.8,0.00785847]
[1764159334738,0.196,2897.0,2896.0,0.8292]
[1764159335435,0.5296,2896.1,2896.0,0.8292]
[1764159336029,0.196,2897.0,2896.0,0.8292]
[1764159337336,0.4648,2896.1,2896.0,0.8292]
[1764159337538,0.4648,2895.9,2895.8,0.00785847]
[1764159337831,0.00312132,2895.9,2895.8,0.46975847]
[1764159347645,0.46792132,2895.9,2895.8,0.46975847]
[1764159349849,0.00312132,2895.9,2895.8,0.46975847]
[1764159351849,2.132e-05,2895.9,2895.8,0.46975847]
[1764159352341,6.46482132,2895.9,2895.8,0.00785847]
[1764159352541,0.4648,2895.1,2893.6,2.47524205]
[1764159352735,0.4648,2895.1,2895.0,0.7357]
[1764159352938,0.4648,2895.4,2895.3,0.4619]
[1764159353340,1.30643178,2895.4,2895.0,0.2738]
[1764159353544,0.4648,2895.4,2895.3,0.00332668]
[1764159353735,0.4648,2895.0,2894.9,0.00518529]
[1764159353942,0.4648,2895.0,2893.5,0.2738]
[1764159354748,0.4648,2895.0,2894.5,0.32727215]
[1764159355045,0.4648,2895.0,2894.5,0.33245744]
[1764159356448,0.4648,2894.6,2894.5,0.00845744]
[1764159356852,1.30527076,2894.6,2894.5,0.00845744]
[1764159357555,0.4648,2894.1,2893.5,0.2738]
[1764159358751,0.4648,2894.1,2893.5,0.28315534]
[1764159359246,0.4648,2893.6,2893.5,0.28315534]
[1764159359452,0.46764572,2893.6,2893.5,0.28315534]
[1764159359753,0.46764572,2893.6,2893.5,0.74505534]
[1764159359947,0.00284572,2893.6,2893.5,0.74505534]
[1764159360347,0.00518529,2893.8,2893.7,0.4619]
[1764159361453,0.00812927,2893.8,2893.7,0.4619]
[1764159364554,0.91770835,2894.9,2893.7,0.4619]
[1764159364852,0.83794546,2894.8,2893.7,0.4619]
[1764159365053,0.83794546,2894.7,2893.7,0.4619]
[1764159365259,0.0802,2894.5,2893.7,0.4619]
[1764159365650,0.475,2893.6,2893.5,0.77495534]
[1764159366259,0.00518529,2894.4,2893.5,0.77495534]
[1764159367059,0.475,2893.6,2893.5,0.77495534]
[1764159367253,0.00518529,2894.4,2893.5,0.77495534]
[1764159368147,0.00518529,2894.4,2893.5,0.78995534]
[1764159368352,0.475,2893.6,2893.5,0.78995534]
[1764159368554,0.475,2893.6,2893.5,0.00935534]
[1764159369255,6.475,2893.6,2892.5,0.2738]
[1764159369451,0.1777,2893.5,2892.5,0.2738]
[1764159370245,0.475,2892.8,2892.7,0.00518529]
[1764159370555,0.475,2892.8,2892.7,0.49698529]
[1764159370750,0.475,2892.8,2892.7,0.00518529]
[1764159371057,6.812,2892.8,2891.5,0.2888]
[1764159371256,2.56397919,2892.7,2891.5,0.2888]
[1764159371447,1.11370835,2893.0,2891.5,0.2888]
[1764159371749,6.17265294,2892.9,2890.5,2.89807748]
[1764159371965,0.00518529,2892.0,2890.5,2.90254294]
[1764159372151,0.196,2893.0,2892.0,0.2888]
[1764159372353,0.475,2892.1,2891.5,0.2888]
[1764159372549,0.196,2893.0,2891.5,0.2888]